bitfinex-derivatives/quotes_ETHF0:USTF0_20251204
["timestamp","ask_amount","ask_price","bid_price","bid_amount"]
[1764879888806,3.5005,3119.3,3119.2,1.8787]
[1764879889111,3.5005,3119.0,3118.9,0.16026]
[1764879889313,3.5005,3119.0,3118.9,2.03896]
[1764879889610,1.7008,3119.0,3118.9,2.03896]
[1764879889810,3.5005,3119.0,3118.9,0.16026]
[1764879889997,1.7008,3119.0,3118.9,3.73806]
[1764879890828,3.5005,3118.7,3118.6,3.2078]
[1764879891110,3.5005,3118.4,3118.3,0.00481155]
[1764879899507,3.5005,3118.4,3118.3,3.58261155]
[1764879899714,6.7083,3118.8,3118.7,1.8787]
[1764879899920,3.2078,3118.8,3118.7,3.5778]
[1764879900119,3.2078,3118.8,3118.7,3.73807]
[1764879900617,12.78,3118.9,3118.7,3.73807]
[1764879900618,12.78,3118.9,3118.8,3.5778]
[1764879900812,3.5005,3118.8,3118.7,0.16027]
[1764879901014,14.4808,3118.9,3118.8,1.8787]
[1764879901219,16.2805,3118.9,3118.8,1.8787]
[1764879901618,3.5005,3118.8,3118.7,0.16027]
[1764879901920,1.7008,3118.4,3118.3,3.74290155]
[1764879902122,3.2078,3118.8,3118.3,3.74290155]
[1764879904714,3.4059,3118.4,3118.3,0.16510155]
[1764879904916,3.4392,3118.1,3118.0,0.00339969]
[1764879905133,3.4392,3117.4,3117.3,5.0082]
[1764879905427,3.4392,3117.4,3117.3,3.2078]
[1764879906116,3.4392,3117.4,3117.3,3.21152979]
[1764879906117,3.44173107,3117.4,3117.3,3.21152979]
[1764879906318,16.22073107,3117.4,3117.3,3.21152979]
[1764879906719,19.42853107,3117.4,3117.3,0.00372979]
[1764879908334,0.00253107,3117.4,3117.3,7.02887979]
[1764879908522,3.2078,3118.6,3118.2,0.1603]
[1764879908720,12.78,3118.8,3118.3,0.16029]
[1764879908920,12.78,3118.8,3118.4,0.16029]
[1764879909119,12.78,3118.8,3118.5,0.9801]
[1764879909318,3.2078,3119.4,3119.3,3.657]
[1764879909515,0.9577,3120.0,3119.6,1.8004]
[1764879909516,0.00481155,3119.7,3119.6,1.8004]
[1764879909724,11.92601155,3119.7,3119.3,0.16024]
[1764879909928,1.7341,3119.4,3119.3,1.96064]
[1764879910625,1.73809163,3119.4,3119.3,1.96305892]
[1764879911026,3.44319163,3119.4,3119.3,0.16265892]
[1764879914833,3.44319163,3119.4,3119.3,0.00241892]
[1764879915130,3.4392,3119.1,3119.0,3.21261155]
[1764879915733,3.4392,3119.1,3119.0,0.00481155]
[1764879916033,3.4392,3119.1,3119.0,0.00728309]
[1764879916728,3.4392,3118.1,3118.0,0.16031]
[1764879917529,3.4392,3118.1,3118.0,0.16262899]
[1764879918233,3.4392,3118.1,3118.0,0.00231899]
[1764879920431,3.4392,3118.1,3118.0,1.80271899]
[1764879920643,3.4392,3118.1,3118.0,0.00231899]
[1764879923338,40.8,3118.4,3118.3,1.8004]
[1764879923638,12.778,3118.5,3118.4,3.81729]
[1764879924139,12.778,3118.5,3118.2,3.2078]
[1764879924140,11.6678,3118.9,3118.8,3.657]
[1764879925334,0.00399163,3119.4,3119.0,0.9801]
[1764879925335,3.21179163,3119.4,3119.0,0.9801]
[1764879925637,3.06599163,3119.4,3119.3,3.657]
[1764879925837,6.50519163,3119.4,3119.3,1.8004]
[1764879926031,1.7341,3119.3,3119.2,0.16025]
[1764879926435,1.7341,3119.3,3119.2,1.96065]
[1764879926634,0.00399163,3119.4,3119.3,3.81724]
[1764879927437,1.73809163,3119.4,3119.3,1.96064]
[1764879927835,1.73809163,3119.4,3119.3,3.81724]
[1764879928636,3.44319163,3119.4,3119.3,0.16024]
[1764879928832,3.44319163,3119.4,3119.3,1.96064]
[1764879929336,3.44319163,3119.4,3119.3,0.16024]
[1764879929633,3.4392,3119.2,3119.1,3.2078]
[1764879930528,0.00399163,3119.4,3119.1,5.0082]
[1764879930727,1.73809163,3119.4,3119.3,3.657]
[1764879931134,14.51309163,3119.4,3119.3,3.657]
[1764879931339,14.51309163,3119.4,3119.3,1.8004]
[1764879931530,16.21819163,3119.4,3119.3,1.8004]
[1764879931927,16.21819163,3119.4,3119.1,3.36805]
[1764879932139,1.7341,3119.2,3119.1,5.16845]
[1764879932338,3.4392,3119.2,3119.1,5.16845]
[1764879932539,3.4392,3119.2,3119.1,1.96065]
[1764879932940,12.77899163,3119.4,3119.1,3.81725]
[1764879933135,1.7341,3119.2,3119.1,3.81725]
[1764879933339,3.4392,3119.2,3119.1,1.96065]
[1764879934535,3.4392,3119.2,3119.1,0.16025]
[1764879935635,12.77899163,3119.4,3119.1,3.55145]
[1764879935831,0.00399163,3119.4,3119.3,3.55144]
[1764879936038,4.945,3120.2,3120.1,3.3912]
[1764879936338,7.769,3120.2,3120.1,3.3912]
[1764879936541,3.3537,3119.8,3119.7,3.2078]
[1764879936746,1.7372,3119.8,3119.7,6.599]
[1764879936946,1.73958631,3119.8,3119.7,6.599]
[1764879937242,3.8172,3119.5,3119.4,0.00481155]
[1764879937439,10.3972,3119.5,3119.4,0.00481155]
[1764879937641,9.9337,3119.5,3119.4,0.00481155]
[1764879938439,3.21018631,3119.8,3119.5,0.8996]
[1764879938638,1.73958631,3119.8,3119.7,3.3912]
[1764879938844,14.51258631,3119.8,3119.7,3.3912]
[1764879939041,16.12908631,3119.8,3119.7,1.6479]
[1764879939743,16.12908631,3119.8,3119.5,0.8996]
[1764879939744,3.3537,3119.7,3119.6,0.16023]
[1764879940839,0.00238631,3119.8,3119.7,3.3912]
[1764879941039,12.77438631,3119.8,3119.7,3.3912]
[1764879941246,14.51158631,3119.8,3119.7,3.3912]
[1764879941547,14.51158631,3119.8,3119.7,1.6479]
[1764879941746,14.51158631,3119.8,3119.7,1.80812]
[1764879941946,12.77438631,3119.8,3119.7,3.55142]
[1764879942145,0.00238631,3119.8,3119.7,3.55142]
[1764879943247,3.35608631,3119.8,3119.7,0.16022]
[1764879943452,0.00238631,3119.8,3119.7,3.55142]
[1764879945351,0.00238631,3119.8,3119.7,6.75922]
[1764879948146,0.00481155,3120.1,3120.0,0.16021]
[1764879948351,0.00481155,3120.1,3120.0,4.12951]
[1764879949360,0.00815048,3120.1,3120.0,4.12951]
[1764879950260,1.47415048,3120.1,3120.0,4.12951]
[1764879950770,2.87695048,3120.1,3120.0,0.16021]
[1764879951459,0.00815048,3120.1,3120.0,3.86261]
[1764879951852,2.87695048,3120.1,3120.0,0.16021]
[1764879952659,2.87695048,3120.1,3120.0,1.54121]
[1764879953064,0.00815048,3120.1,3120.0,3.86261]
[1764879956863,2.8688,3120.6,3120.5,0.16018]
[1764879957068,2.8688,3120.6,3120.5,1.54118]
[1764879957264,2.8688,3120.6,3120.5,2.97268]
[1764879957770,2.87125531,3120.6,3120.5,2.97654216]
[1764879958171,2.87125531,3120.6,3120.5,1.54504216]
[1764879958467,12.4602,3122.0,3120.5,14.31359223]
[1764879958659,2.8688,3121.7,3121.6,3.2078]
[1764879959463,2.87209724,3121.7,3121.6,3.2078]
[1764879961173,0.00329724,3121.7,3121.3,2.97745155]
[1764879961474,3.7763,3121.5,3121.4,3.2078]
[1764879961865,0.00329724,3121.7,3121.6,1.4315]
[1764879962061,1.466,3121.5,3121.4,3.36793]
[1764879962266,3.7763,3121.5,3121.4,3.36793]
[1764879962468,1.466,3121.5,3121.4,6.18043]
[1764879962674,4.22429724,3121.7,3121.6,1.381]
[1764879962876,0.00481155,3122.0,3121.9,2.8125]
[1764879963074,4.764,3122.3,3122.2,2.8125]
[1764879963268,10.043,3122.3,3122.2,2.8125]
[1764879963468,40.8,3122.7,3122.2,2.8125]
[1764879963670,15.6318,3122.4,3122.3,4.5888]
[1764879963869,1.418,3121.9,3121.8,4.6302]
[1764879964279,1.418,3121.9,3121.8,3.2078]
[1764879964280,2.9455,3121.9,3121.8,3.2078]
[1764879966780,15.7065,3121.9,3121.8,3.2078]
[1764879970676,15.7065,3121.9,3121.3,0.00481155]
[1764879970677,1.418,3121.4,3121.3,0.00481155]
[1764879970886,2.9455,3121.4,3121.3,0.00481155]
[1764879972281,4.6258,3121.9,3121.8,1.4224]
[1764879972479,1.418,3121.9,3121.8,2.854]
[1764879972685,1.42118412,3122.2,3122.1,1.4224]
[1764879972985,0.00318412,3122.2,3122.1,2.854]
[1764879973777,0.00318412,3122.2,3122.1,3.0141]
[1764879973975,0.5137,3123.0,3122.4,0.16008]
[1764879974171,2.9455,3122.4,3122.3,3.2078]
[1764879974980,1.418,3121.6,3121.5,4.6302]
[1764879975182,12.758,3121.9,3121.5,6.0618]
[1764879975488,8.355,3121.8,3121.7,1.4224]
[1764879975683,40.8,3122.0,3121.9,2.854]
[1764879975883,0.00301458,3122.4,3121.9,6.22191]
[1764879976092,12.758,3122.3,3121.9,6.22191]
[1764879976386,1.42101458,3122.4,3122.3,1.4224]
[1764879976575,10.10401458,3122.4,3122.3,2.854]
[1764879976779,10.10401458,3122.4,3122.3,1.4224]
[1764879977380,11.63151458,3122.4,3122.3,1.4224]
[1764879977681,11.63151458,3122.4,3122.0,0.1601]
[1764879978086,1.418,3122.1,3122.0,1.5825]
[1764879978284,0.00301458,3122.4,3122.3,2.854]
[1764879978585,0.00301458,3122.4,3122.3,6.22189]
[1764879978786,12.757,3122.9,3122.8,1.4224]
[1764879979083,3.2078,3123.2,3122.8,2.854]
[1764879979288,4.1351,3124.0,3123.4,1.4224]
[1764879979586,3.8728,3123.5,3123.4,0.16483376]
[1764879979782,3.87513159,3123.5,3123.4,0.00894357]
[1764879979980,2.9455,3122.9,3122.8,3.2078]
[1764879980284,1.418,3122.9,3122.8,4.6302]
[1764879980485,2.9455,3123.1,3123.0,1.4224]
[1764879980782,2.9455,3122.9,3122.8,3.2078]
[1764879980977,2.9455,3122.9,3122.8,3.21109497]
[1764879981379,2.9455,3122.9,3122.5,0.00480376]
[1764879981380,2.9455,3122.3,3122.2,3.36789]
[1764879981575,2.9455,3122.3,3122.2,0.16009]
[1764879981978,1.418,3122.3,3122.2,1.58249]
[1764879982183,3.2078,3122.7,3122.3,0.16009]
[1764879982390,0.9273,3123.0,3122.5,1.4224]
[1764879982587,2.597,3122.6,3122.5,2.854]
[1764879982885,4.015,3122.6,3122.4,0.16008]
[1764879983093,2.9455,3122.5,3122.4,0.16008]
[1764879983888,2.9455,3122.4,3122.3,0.00337108]
[1764879987287,6.1533,3122.4,3122.3,0.00337108]
[1764879987696,6.1533,3122.4,3122.3,1.42577108]
[1764879987899,17.3798,3122.4,3122.3,1.42577108]
[1764879988099,58.1798,3122.4,3122.3,1.42577108]
[1764879988298,18.9073,3122.4,3122.3,0.00337108]
[1764879988800,59.7073,3122.4,3122.3,0.00337108]
[1764879990995,2.9455,3121.5,3121.4,2.29060302]
[1764879991200,1.418,3121.0,3120.9,1.58256]
[1764879991390,2.9455,3121.0,3120.5,4.0977]
[1764879992201,2.9496387,3121.0,3120.5,4.10110469]
[1764879992393,2.9496387,3121.0,3120.5,4.26128469]
[1764879992794,1.418,3120.6,3120.5,5.68368469]
[1764879993297,0.0041387,3121.0,3120.5,7.11528469]
[1764879996390,1.418,3120.6,3120.5,7.11528469]
[1764879996604,0.0041387,3121.0,3120.5,7.11528469]
[1764879997301,3.0381,3120.6,3120.5,0.16358469]
[1764879998198,15.7931,3120.6,3120.4,0.00480376]
[1764879998399,3.0381,3120.5,3120.4,0.00480376]
[1764879998998,15.7931,3120.5,3120.4,0.00480376]
[1764879999394,15.7931,3120.5,3120.4,0.00827431]
[1764879999704,15.7931,3120.5,3120.4,1.61187431]
[1764880001708,4.7427,3120.7,3120.6,3.0597]
[1764880002006,17.4987,3120.7,3120.6,3.0597]
[1764880002597,17.4987,3120.7,3120.4,0.00827431]
[1764880002598,3.0381,3120.5,3120.4,0.16845431]
[1764880002795,3.0381,3120.5,3120.4,3.33005431]
[1764880003006,6.2188,3120.7,3120.6,1.4817]
[1764880003206,18.9748,3120.7,3120.6,1.4817]
[1764880004109,15.767,3120.7,3120.6,1.4817]
[1764880005910,3.011,3120.6,3120.5,0.16018]
[1764880006110,3.011,3120.5,3120.4,0.00827431]
[1764880006408,3.011,3120.5,3120.4,1.48997431]
[1764880007508,3.011,3120.5,3120.4,3.04797431]
[1764880007810,15.768,3120.5,3120.4,3.04797431]
[1764880008506,15.768,3120.5,3120.4,1.48997431]
[1764880009111,3.011,3120.5,3120.4,1.48997431]
[1764880009411,15.768,3120.5,3120.4,1.48997431]
[1764880010410,15.768,3120.5,3120.4,0.00827431]
[1764880010908,15.768,3120.5,3120.4,1.48997431]
[1764880011108,15.768,3120.5,3120.4,0.00827431]
[1764880011310,15.768,3120.5,3120.4,3.04797431]
[1764880011808,3.011,3119.4,3119.3,3.2078]
[1764880012008,3.2078,3119.9,3119.3,3.0397]
[1764880012214,10.688,3119.8,3119.7,1.4817]
[1764880012512,3.011,3119.7,3119.6,0.16023]
[1764880012811,3.011,3119.7,3119.6,0.16356512]
[1764880014014,3.011,3119.7,3119.6,0.00333512]
[1764880014816,3.011,3119.7,3119.6,1.48503512]
[1764880015214,3.011,3119.7,3119.6,0.00333512]
[1764880015411,1.5769,3119.7,3119.6,3.04303512]
[1764880015617,12.757,3119.7,3119.6,3.20326512]
[1764880015820,14.3349,3119.7,3119.6,1.72156512]
[1764880016118,14.3349,3119.7,3119.6,3.20326512]
[1764880016612,3.2078,3119.9,3119.8,3.0397]
[1764880016813,15.9658,3119.9,3119.8,3.0397]
[1764880017012,17.5427,3119.9,3119.8,3.0397]
[1764880017421,12.758,3119.9,3119.8,3.0397]
[1764880017616,3.2078,3120.4,3119.8,3.0397]
[1764880017919,12.758,3119.9,3119.8,3.0397]
[1764880019806,3.2078,3120.4,3119.8,3.0397]
[1764880020008,3.011,3120.1,3120.0,3.8926]
[1764880020212,3.011,3120.1,3120.0,2.3346]
[1764880020407,1.5769,3120.1,3120.0,3.8926]
[1764880020616,3.2078,3120.8,3120.3,3.0397]
[1764880020921,3.2078,3120.8,3120.7,3.0397]
[1764880021216,0.0041387,3121.0,3120.9,3.0397]
[1764880021421,9.2781387,3121.0,3120.9,3.0397]
[1764880021610,10.8550387,3121.0,3120.9,3.0397]
[1764880022420,0.0041387,3121.0,3120.9,3.19986]
[1764880022717,3.0151387,3121.0,3120.9,3.19986]
[1764880023422,1.5810387,3121.0,3120.9,3.19986]
[1764880024215,3.0151387,3121.0,3120.9,0.16016]
[1764880024416,1.5205387,3121.0,3120.9,1.4454]
[1764880024621,0.0041387,3121.0,3120.9,3.10336]
[1764880024817,2.9746,3121.6,3121.5,2.43923]
[1764880025010,1.5164,3121.6,3121.5,3.93703]
[1764880025610,2.9746,3121.6,3121.5,3.93703]
[1764880025816,2.97827971,3121.6,3121.5,3.93703]
[1764880026317,1.52007971,3121.6,3121.5,3.93703]
[1764880026810,2.97827971,3121.6,3121.5,3.93703]
[1764880027018,2.9746,3121.3,3121.2,6.15580376]
[1764880027224,2.9746,3121.3,3121.2,4.65800376]
[1764880027723,2.97827971,3121.6,3121.5,1.4454]
[1764880028222,2.97827971,3121.6,3121.2,3.37274376]
[1764880028426,2.9746,3121.3,3121.2,4.81814376]
[1764880028724,0.00367971,3121.6,3121.2,6.31594376]
[1764880029031,0.00367971,3121.6,3121.5,3.93703]
[1764880029820,1.52007971,3121.6,3121.5,3.93703]
[1764880030623,2.97827971,3121.6,3121.5,0.16013]
[1764880031330,2.9746,3121.3,3121.2,4.65800376]
[1764880031530,2.9746,3121.3,3121.2,3.21260376]
[1764880032224,2.9746,3121.3,3121.2,4.65800376]
[1764880033321,2.9746,3121.3,3121.2,3.21260376]
[1764880033727,6.1824,3121.3,3121.2,0.00480376]
[1764880034034,1.5164,3120.6,3120.5,3.7769]
[1764880034333,2.9746,3120.6,3120.5,2.2791]
[1764880035633,2.9746,3120.6,3120.5,3.93708]
[1764880035838,3.2078,3121.3,3120.5,3.93708]
[1764880036541,1.5164,3120.6,3120.5,3.93708]
[1764880038838,3.2078,3121.3,3120.5,0.8337]
[1764880039038,1.52007971,3121.6,3121.5,3.7769]
[1764880039435,0.00367971,3121.6,3121.5,3.93703]
[1764880040740,3.2078,3122.2,3122.1,2.9432]
[1764880041042,5.9048,3122.6,3122.1,2.9432]
[1764880041744,3.21136974,3122.6,3122.3,1.65789]
[1764880042043,1.51996974,3122.6,3122.5,3.7769]
[1764880042238,1e-08,3122.7,3122.6,3.10327]
[1764880042439,4.7318,3123.5,3123.0,3.7769]
[1764880042646,3.2078,3123.5,3123.0,3.7769]
[1764880042936,4.7242,3123.5,3123.4,1.4454]
[1764880043135,2.9746,3123.5,3123.4,2.9432]
[1764880043340,2.97713982,3123.5,3123.0,4.0415]
[1764880044240,2.97713982,3123.5,3123.1,0.16005]
[1764880046339,1.5164,3123.2,3123.1,3.10325]
[1764880047436,2.9746,3123.2,3123.1,1.60545]
[1764880047838,0.00480376,3123.8,3123.7,3.10322]
[1764880048043,4.7242,3124.7,3124.6,1.4454]
[1764880048241,6.1824,3124.7,3124.6,1.4454]
[1764880048543,4.7242,3124.7,3124.6,1.4454]
[1764880048745,53.547,3124.9,3124.6,2.9432]
[1764880048943,0.00315188,3124.7,3124.6,2.94731463]
[1764880050539,1.51955188,3124.7,3124.6,1.44951463]
[1764880050738,0.00315188,3124.7,3124.6,2.94731463]
[1764880051245,3.21257782,3125.1,3125.0,1.4454]
[1764880051246,6.18717782,3125.1,3125.0,1.4454]
[1764880051440,6.18717782,3125.1,3124.8,0.15996]
[1764880051441,2.9746,3124.9,3124.8,0.15996]
[1764880051838,2.9746,3124.9,3124.8,1.60536]
[1764880052150,0.00260979,3124.9,3124.8,3.10316]
[1764880052738,3.2078,3126.0,3125.5,3.7769]
[1764880053543,2.9746,3125.3,3124.8,3.2078]
[1764880053844,12.743,3125.3,3124.8,6.151]
[1764880054044,2.7893,3124.9,3124.8,3.2078]
[1764880055543,40.8,3124.9,3124.3,3.2078]
[1764880055749,12.742,3124.8,3124.5,0.8578]
[1764880056240,12.742,3124.8,3124.3,3.2078]
[1764880056437,3.2078,3124.5,3124.3,0.00342906]
[1764880057053,3.2078,3124.5,3124.2,0.00480376]
[1764880057054,9.2078,3124.5,3124.2,0.00480376]
[1764880057239,3.2078,3124.5,3124.2,0.00480376]
[1764880058038,3.2078,3124.5,3124.2,0.00804877]
[1764880061845,9.36778,3124.5,3123.5,0.8337]
[1764880062042,3.2078,3123.7,3123.5,0.8337]
[1764880062245,51.739,3123.6,3123.5,0.8337]
[1764880062659,3.2078,3124.4,3123.9,0.16]
[1764880062956,3.21049573,3124.4,3124.0,0.8578]
[1764880063148,40.8,3124.3,3124.0,0.8578]
[1764880063348,40.8,3124.3,3124.0,2.1936]
[1764880064946,40.8,3124.3,3124.2,1.3358]
[1764880065148,53.539,3124.3,3124.2,1.3358]
[1764880066257,53.539,3124.3,3124.0,2.1936]
[1764880066752,53.539,3124.3,3124.0,0.8578]
[1764880068454,53.539,3124.3,3124.0,2.1936]
[1764880069056,40.8,3124.3,3124.0,2.1936]
[1764880069256,12.739,3124.2,3124.0,2.3681]
[1764880069656,12.739,3124.2,3124.0,0.8578]
[1764880070057,40.8,3124.1,3124.0,0.8578]
[1764880072352,40.8,3124.1,3124.0,2.3681]
[1764880072956,40.8,3124.1,3124.0,0.8578]
[1764880073658,40.8,3124.1,3123.9,0.00293344]
[1764880074059,3.2078,3124.0,3123.9,0.00293344]
[1764880074264,4.31444747,3124.0,3123.9,0.00293344]
[1764880075156,45.11444747,3124.0,3123.9,0.00293344]
[1764880079068,45.11444747,3124.0,3123.1,3.087]
[1764880079258,3.2078,3123.6,3123.5,2.425]
[1764880079560,15.9458,3123.6,3123.5,4.0017]
[1764880079965,15.9458,3123.6,3123.5,4.00537744]
[1764880080165,3.2078,3123.6,3123.5,4.00537744]
[1764880080362,44.0078,3124.0,3123.9,3.087]
[1764880080662,56.7458,3124.0,3123.9,3.087]
[1764880081058,15.9458,3124.0,3123.9,3.087]
[1764880081258,3.2078,3124.0,3123.9,3.087]
[1764880081760,1.15511436,3124.9,3123.9,3.087]
[1764880081761,3.21049573,3124.4,3124.3,1.5103]
[1764880081964,0.00269573,3124.4,3124.3,3.087]
[1764880082170,0.00269573,3124.4,3124.3,9.087]
[1764880082460,3.83080375,3124.9,3124.8,3.087]
[1764880082665,9.432,3124.9,3124.8,3.087]
[1764880083363,9.43485978,3124.9,3124.8,3.087]
[1764880084359,0.00480376,3125.2,3125.1,3.0291]
[1764880084559,3.2078,3126.1,3126.0,0.8548]
[1764880084763,17.05323983,3126.1,3125.5,2.3121]
[1764880084959,41.90743983,3126.0,3125.5,2.3121]
[1764880085156,1.10743983,3125.9,3125.5,2.3121]
[1764880085361,0.76603954,3125.9,3125.5,2.3146885]
[1764880085659,3.2078,3125.7,3125.5,2.3146885]
[1764880085859,12.737,3125.6,3125.5,2.3146885]
[1764880086062,12.737,3125.6,3125.5,3.8334885]
[1764880086867,12.737,3125.6,3125.5,2.3146885]
[1764880087767,0.00281636,3125.9,3125.8,3.13601]
[1764880087965,40.8,3126.8,3126.7,1.4573]
[1764880088165,53.536,3126.8,3126.7,2.9761]
[1764880088664,3.2078,3126.9,3126.8,2.9761]
[1764880088874,15.9464979,3126.9,3126.8,2.9761]
[1764880089063,15.9464979,3126.9,3126.5,0.85960376]
[1764880090260,15.9464979,3126.9,3126.5,0.00480376]
[1764880091269,0.15987,3126.7,3125.5,0.8573885]
[1764880091468,3.2078,3126.7,3126.2,2.9761]
[1764880091667,3.2078,3126.7,3126.0,0.8548]
[1764880091668,10.487,3126.6,3126.0,0.8548]
[1764880091974,11.635,3126.5,3126.0,0.8548]
[1764880092266,3.2078,3126.5,3126.0,0.8548]
[1764880092467,0.00480376,3126.6,3126.5,2.3121]
[1764880092671,2.67980376,3126.6,3126.5,2.3121]
[1764880092975,12.73680376,3126.6,3126.5,0.8548]
[1764880093173,12.73680376,3126.6,3126.0,1.0147]
[1764880094478,12.73680376,3126.6,3126.0,0.8548]
[1764880094675,40.8,3126.5,3126.0,0.8548]
[1764880096177,3.2078,3126.2,3126.0,0.8548]
[1764880097186,3.2078,3126.2,3126.1,2.9761]
[1764880100087,44.01260376,3126.6,3126.5,3.8309]
[1764880100282,3.21260376,3126.6,3126.5,3.8309]
[1764880100485,0.00480376,3126.6,3126.5,2.3121]
[1764880100685,3.21260376,3126.6,3126.5,0.8548]
[1764880101486,3.21260376,3126.6,3126.5,2.3121]
[1764880102685,3.21260376,3126.6,3126.0,0.8548]
[1764880102891,3.2078,3126.2,3125.9,0.00480376]
[1764880103193,12.729,3126.1,3125.9,0.00480376]
[1764880104088,18.729,3126.1,3125.5,0.0025885]
[1764880104290,3.2078,3125.8,3125.5,0.8573885]
[1764880104988,3.2078,3125.8,3125.5,0.0025885]
[1764880106384,40.8,3125.7,3125.5,0.0025885]
[1764880108590,12.729,3125.6,3125.3,0.00480376]
[1764880108895,3.2078,3125.4,3125.3,0.00480376]
[1764880109188,44.0078,3125.4,3125.3,0.00480376]
[1764880109487,44.0078,3125.4,3125.3,0.00880611]
[1764880109988,56.7368,3125.4,3125.3,0.00880611]
[1764880111593,44.0078,3125.4,3125.3,2.62480611]
[1764880111885,3.2078,3126.0,3125.5,0.787]
[1764880112078,8.743,3125.9,3125.5,0.787]
[1764880112277,40.8,3125.8,3125.5,0.787]
[1764880112483,3.2078,3125.6,3125.3,0.00880611]
[1764880114394,12.729,3125.5,3125.3,0.00880611]
[1764880117698,40.8,3125.4,3125.3,0.00880611]
[1764880119703,44.3612007,3125.4,3124.0,4.0626]
[1764880119887,3.2078,3124.8,3124.0,4.0626]
[1764880120091,12.73,3124.7,3124.0,4.0626]
[1764880120498,12.73,3124.7,3124.6,1.3616]
[1764880120698,12.73239243,3124.7,3124.6,1.36451124]
[1764880120986,12.73239243,3124.7,3124.6,0.00291124]
[1764880122100,12.73239243,3124.7,3124.6,1.36451124]
[1764880122499,12.73239243,3124.7,3124.6,0.00291124]
[1764880123802,13.49309912,3124.7,3124.3,0.00480376]
[1764880124000,3.2078,3124.4,3124.3,0.00480376]
[1764880124196,44.0078,3124.4,3124.3,0.00480376]
[1764880124397,45.11168375,3124.4,3123.5,2.1623]
[1764880124603,3.2078,3124.0,3123.5,2.1623]
[1764880124801,12.73,3123.9,3123.5,2.16564163]
[1764880125900,3.2078,3123.6,3123.5,0.80404163]
[1764880126497,3.2078,3123.6,3123.5,2.16564163]
[1764880128105,3.2078,3123.6,3123.5,3.43784163]
[1764880129603,3.2078,3123.6,3123.5,0.80404163]
[1764880129997,3.2078,3123.6,3122.4,3.2078]
[1764880130201,3.2078,3123.6,3122.5,2.029]
[1764880130401,3.2078,3123.0,3122.5,2.029]
[1764880130598,12.733,3122.9,3122.5,2.029]
[1764880131310,12.733,3122.9,3122.5,2.0327787]
[1764880131700,44.01260376,3123.0,3122.9,1.2283]
[1764880132009,56.74560376,3123.0,3122.9,1.2283]
[1764880132208,3.21260376,3123.0,3122.9,2.5005]
[1764880132504,7.853,3123.1,3123.0,0.7588]
[1764880132813,7.853,3123.1,3123.0,3.2593]
[1764880133109,7.853,3123.1,3123.0,1.9871]
[1764880133909,7.853,3123.1,3123.0,0.7588]
[1764880134110,7.853,3123.1,3123.0,1.9871]
[1764880135307,40.8,3123.3,3123.2,1.2283]
[1764880135507,53.534,3123.3,3123.2,1.2283]
[1764880135906,12.735,3123.3,3123.0,0.7588]
[1764880136104,12.735,3123.3,3123.2,2.5005]
[1764880137800,3.21260376,3123.4,3123.3,2.5005]
[1764880138001,15.94760376,3123.4,3123.3,2.5005]
[1764880140602,3.21260376,3123.4,3123.3,2.5005]
[1764880143308,3.21260376,3123.4,3123.2,1.2283]
[1764880143511,3.21260376,3123.4,3123.0,0.7588]
[1764880143914,3.21260376,3123.4,3123.3,2.4472]
[1764880144108,15.94760376,3123.4,3123.3,2.4472]
[1764880144518,15.94760376,3123.4,3123.0,0.91885]
[1764880145714,15.94760376,3123.4,3123.3,2.517]
[1764880145917,15.94760376,3123.4,3123.3,1.2981]
[1764880146118,15.94760376,3123.4,3123.0,0.91885]
[1764880146816,15.94760376,3123.4,3123.0,2.21695]
[1764880147720,3.21260376,3123.4,3123.3,2.517]
[1764880147916,15.94660376,3123.4,3123.3,2.517]
[1764880148417,15.94660376,3123.4,3123.2,1.45814]
[1764880148616,0.16005,3123.1,3122.5,0.0037787]
[1764880148816,3.2078,3122.6,3122.5,0.7057787]
[1764880149014,53.9598,3122.6,3122.5,2.0038787]
[1764880149409,53.9598,3122.6,3122.5,0.7057787]
[1764880150816,44.0078,3122.6,3122.5,3.2227787]
[1764880151017,56.7428,3122.6,3122.5,3.2227787]
[1764880151423,56.7428,3122.6,3122.5,2.0038787]
[1764880152225,44.0078,3122.6,3122.5,2.0038787]
[1764880152426,56.7428,3122.6,3122.5,2.0038787]
[1764880154031,56.7428,3122.6,3122.5,0.0037787]
[1764880154230,56.7428,3122.6,3122.4,0.00480376]
[1764880154231,57.85112889,3122.6,3122.4,0.00480376]
[1764880154432,1.10832889,3122.5,3122.4,0.00480376]
[1764880155025,1.10832889,3122.5,3122.0,0.8007]
[1764880155224,3.97574616,3122.5,3122.0,0.80431844]
[1764880155426,3.2078,3122.1,3122.0,0.80431844]
[1764880155730,15.9438,3122.1,3122.0,0.00361844]
[1764880155931,17.05177258,3122.1,3121.5,0.7588]
[1764880156121,0.76349513,3122.0,3121.5,0.76360376]
[1764880156430,0.76349513,3122.0,3121.5,2.06170376]
[1764880157031,0.76349513,3122.0,3121.5,2.06502966]
[1764880157533,15.9438,3122.1,3121.5,2.06502966]
[1764880158934,15.9438,3122.1,3121.5,0.76692966]
[1764880159738,1.10595293,3122.0,3121.5,0.00812966]
[1764880159936,0.76212419,3122.0,3121.5,0.71012966]
[1764880160431,40.8,3121.9,3121.5,0.71012966]
[1764880160828,40.8,3121.9,3121.5,2.00822966]
[1764880161021,12.738,3121.8,3121.5,0.71012966]
[1764880161424,12.738,3121.8,3121.5,0.00812966]
[1764880162434,12.738,3121.8,3121.5,0.71012966]
[1764880163333,12.738,3121.8,3121.5,0.00812966]
[1764880163639,3.2078,3121.6,3121.0,2.0001]
[1764880164536,3.21260376,3121.6,3121.0,2.00688889]
[1764880164837,3.21260376,3121.6,3121.5,0.702]